Workbook

Sheet MIXTE
C1: COUPE DE FRANCE DES CLUBS MIXTE 2017 | Y1: MIXTE
E3: LIEU : | H3: REGION : | L3: Date :
AB4: DEB | AC4: DEP + | AD4: REG + | AE4: IRG + | AF4: FED + | AG4: NAT + | AH4: INTB + | AI4: INTA + | AJ4: OLY +
A5: SEXE | B5: ZONE | C5: REG. | D5: CL. | E5: LICENCE | F5: NOMS | G5: Prénoms | H5: AN | I5: POIDS | J5: CLUB | K5: NAT | L5: 1 | M5: 2 | N5: 3 | O5: ARR | P5: 1 | Q5: 2 | R5: 3 | S5: EP-J | T5: Total | U5: IWF | V5: SERIE | X5: Catég | AB5: DEB | AC5: DEP + | AD5: REG + | AE5: IRG + | AF5: FED + | AG5: NAT + | AH5: INTB + | AI5: INTA + | AJ5: OLY +
B6: Tirage au sort : | H6: Classement : | L6: =IF(Y6="","",RANK(Y6,$Z$7:$Z$9,0)) -> 3 | Y6: =SUM(U7:U11) -> 1179.866486 | AB6: =T6-HLOOKUP(X6,Feuil1!$C$1:$BL$10,2,FALSE) ->  | AC6: =T6-HLOOKUP(X6,Feuil1!$C$1:$BL$10,3,FALSE) ->  | AD6: =T6-HLOOKUP(X6,Feuil1!$C$1:$BL$10,4,FALSE) ->  | AE6: =T6-HLOOKUP(X6,Feuil1!$C$1:$BL$10,5,FALSE) ->  | AF6: =T6-HLOOKUP(X6,Feuil1!$C$1:$BL$10,6,FALSE) ->  | AG6: =T6-HLOOKUP(X6,Feuil1!$C$1:$BL$10,7,FALSE) ->  | AH6: =T6-HLOOKUP(X6,Feuil1!$C$1:$BL$10,8,FALSE) ->  | AI6: =T6-HLOOKUP(X6,Feuil1!$C$1:$BL$10,9,FALSE) ->  | AJ6: =T6-HLOOKUP(X6,Feuil1!$C$1:$BL$10,10,FALSE) ->  | AQ6: =IF(AJ6>=0,$AJ$5,IF(AI6>=0,$AI$5,IF(AH6>=0,$AH$5,IF(AG6>=0,$AG$5,IF(AF6>=0,$AF$5,IF(AE6>=0,$AE$5,IF(AD6>=0,$AD$5,IF(AC6>=0,$AC$5,$AB$5)))))))) -> 
A7: H | B7: SEST | C7: RAL | H7: 1996 | I7: 100 | L7: 90 | O7: =IF(H7="","",IF(MAXA(L7:N7)<=0,0,MAXA(L7:N7))) -> 90 | P7: 100 | S7: =IF(H7="","",IF(MAXA(P7:R7)<=0,0,MAXA(P7:R7))) -> 100 | T7: =IF(H7="","",IF(OR(O7=0,S7=0),0,O7+S7)) -> 190 | U7: =IF(I7="","",IF(A7="H",10^(0.794358141*LOG(I7/174.393)^2)*T7,IF(A7="F",10^(0.89726074*LOG(I7/148.026)^2)*T7,""))) -> 211.394411 | V7: =IF(H7="","",AQ7) -> DEB | W7: =IF(AJ7>=0,AJ7,IF(AI7>=0,AI7,IF(AH7>=0,AH7,IF(AG7>=0,AG7,IF(AF7>=0,AF7,IF(AE7>=0,AE7,IF(AD7>=0,AD7,IF(AC7>=0,AC7,AB7)))))))) -> 15 | X7: =IF(I7="","",IF(A7="H",IF(OR(H7="SEN",H7<1997),VLOOKUP(I7,Feuil1!$A$11:$G$29,6),IF(AND(H7>1996,H7<2000),VLOOKUP(I7,Feuil1!$A$11:$G$29,5),IF(AND(H7>1999,H7<2002),VLOOKUP(I7,Feuil1!$A$11:$G$29,4),IF(AND(H7>2001,H7<2004),VLOOKUP(I7,Feuil1!$A$11:$G$29,3),VLOOKUP(I7,Feuil1!$A$11:$G$29,2))))),IF(OR(H7="SEN",H7<1997),VLOOKUP(I7,Feuil1!$G$11:$L$25,6),IF(AND(H7>1996,H7<2000),VLOOKUP(I7,Feuil1!$G$11:$L$25,5),IF(AND(H7>1999,H7<2002),VLOOKUP(I7,Feuil1!$G$11:$L$25,4),IF(AND(H7>2001,H7<2004),VLOOKUP(I7,Feuil1!$G$11:$L$25,3),VLOOKUP(I7,Feuil1!$G$11:$L$25,2))))))) -> S105 | Z7: =Y6 -> 1179.866486 | AB7: =T7-HLOOKUP(X7,Feuil1!$C$1:$BL$10,2,FALSE) -> 15 | AC7: =T7-HLOOKUP(X7,Feuil1!$C$1:$BL$10,3,FALSE) -> -5 | AD7: =T7-HLOOKUP(X7,Feuil1!$C$1:$BL$10,4,FALSE) -> -30 | AE7: =T7-HLOOKUP(X7,Feuil1!$C$1:$BL$10,5,FALSE) -> -55 | AF7: =T7-HLOOKUP(X7,Feuil1!$C$1:$BL$10,6,FALSE) -> -80 | AG7: =T7-HLOOKUP(X7,Feuil1!$C$1:$BL$10,7,FALSE) -> -110 | AH7: =T7-HLOOKUP(X7,Feuil1!$C$1:$BL$10,8,FALSE) -> -135 | AI7: =T7-HLOOKUP(X7,Feuil1!$C$1:$BL$10,9,FALSE) -> -155 | AJ7: =T7-HLOOKUP(X7,Feuil1!$C$1:$BL$10,10,FALSE) -> -175 | AQ7: =IF(AJ7>=0,$AJ$5,IF(AI7>=0,$AI$5,IF(AH7>=0,$AH$5,IF(AG7>=0,$AG$5,IF(AF7>=0,$AF$5,IF(AE7>=0,$AE$5,IF(AD7>=0,$AD$5,IF(AC7>=0,$AC$5,$AB$5)))))))) -> DEB
A8: H | B8: SEST | C8: RAL | H8: 2000 | I8: 75 | L8: 100 | O8: 100 | P8: 110 | S8: 110 | T8: 210 | U8: 268.4729352 | V8: NAT + | W8: 10 | X8: =IF(I8="","",IF(A8="H",IF(OR(H8="SEN",H8<1997),VLOOKUP(I8,Feuil1!$A$11:$G$29,6),IF(AND(H8>1996,H8<2000),VLOOKUP(I8,Feuil1!$A$11:$G$29,5),IF(AND(H8>1999,H8<2002),VLOOKUP(I8,Feuil1!$A$11:$G$29,4),IF(AND(H8>2001,H8<2004),VLOOKUP(I8,Feuil1!$A$11:$G$29,3),VLOOKUP(I8,Feuil1!$A$11:$G$29,2))))),IF(OR(H8="SEN",H8<1997),VLOOKUP(I8,Feuil1!$G$11:$L$25,6),IF(AND(H8>1996,H8<2000),VLOOKUP(I8,Feuil1!$G$11:$L$25,5),IF(AND(H8>1999,H8<2002),VLOOKUP(I8,Feuil1!$G$11:$L$25,4),IF(AND(H8>2001,H8<2004),VLOOKUP(I8,Feuil1!$G$11:$L$25,3),VLOOKUP(I8,Feuil1!$G$11:$L$25,2))))))) -> C2 77 | Z8: =Y12 -> 1276.115951 | AB8: =T8-HLOOKUP(X8,Feuil1!$C$1:$BL$10,2,FALSE) -> 100 | AC8: =T8-HLOOKUP(X8,Feuil1!$C$1:$BL$10,3,FALSE) -> 80 | AD8: =T8-HLOOKUP(X8,Feuil1!$C$1:$BL$10,4,FALSE) -> 60 | AE8: =T8-HLOOKUP(X8,Feuil1!$C$1:$BL$10,5,FALSE) -> 40 | AF8: =T8-HLOOKUP(X8,Feuil1!$C$1:$BL$10,6,FALSE) -> 25 | AG8: =T8-HLOOKUP(X8,Feuil1!$C$1:$BL$10,7,FALSE) -> 10 | AH8: =T8-HLOOKUP(X8,Feuil1!$C$1:$BL$10,8,FALSE) -> -10 | AI8: =T8-HLOOKUP(X8,Feuil1!$C$1:$BL$10,9,FALSE) -> -40 | AJ8: =T8-HLOOKUP(X8,Feuil1!$C$1:$BL$10,10,FALSE) -> -790 | AQ8: NAT +
A9: H | B9: SEST | C9: RAL | H9: 1985 | I9: 95 | L9: 100 | O9: =IF(H9="","",IF(MAXA(L9:N9)<=0,0,MAXA(L9:N9))) -> 100 | P9: 110 | S9: =IF(H9="","",IF(MAXA(P9:R9)<=0,0,MAXA(P9:R9))) -> 110 | T9: =IF(H9="","",IF(OR(O9=0,S9=0),0,O9+S9)) -> 210 | U9: =IF(I9="","",IF(A9="H",10^(0.794358141*LOG(I9/174.393)^2)*T9,IF(A9="F",10^(0.89726074*LOG(I9/148.026)^2)*T9,""))) -> 238.5070982 | V9: =IF(H9="","",AQ9) -> DEP + | W9: =IF(AJ9>=0,AJ9,IF(AI9>=0,AI9,IF(AH9>=0,AH9,IF(AG9>=0,AG9,IF(AF9>=0,AF9,IF(AE9>=0,AE9,IF(AD9>=0,AD9,IF(AC9>=0,AC9,AB9)))))))) -> 15 | X9: =IF(I9="","",IF(A9="H",IF(OR(H9="SEN",H9<1997),VLOOKUP(I9,Feuil1!$A$11:$G$29,6),IF(AND(H9>1996,H9<2000),VLOOKUP(I9,Feuil1!$A$11:$G$29,5),IF(AND(H9>1999,H9<2002),VLOOKUP(I9,Feuil1!$A$11:$G$29,4),IF(AND(H9>2001,H9<2004),VLOOKUP(I9,Feuil1!$A$11:$G$29,3),VLOOKUP(I9,Feuil1!$A$11:$G$29,2))))),IF(OR(H9="SEN",H9<1997),VLOOKUP(I9,Feuil1!$G$11:$L$25,6),IF(AND(H9>1996,H9<2000),VLOOKUP(I9,Feuil1!$G$11:$L$25,5),IF(AND(H9>1999,H9<2002),VLOOKUP(I9,Feuil1!$G$11:$L$25,4),IF(AND(H9>2001,H9<2004),VLOOKUP(I9,Feuil1!$G$11:$L$25,3),VLOOKUP(I9,Feuil1!$G$11:$L$25,2))))))) -> S105 | Z9: =Y18 -> 1197.150248 | AB9: =T9-HLOOKUP(X9,Feuil1!$C$1:$BL$10,2,FALSE) -> 35 | AC9: =T9-HLOOKUP(X9,Feuil1!$C$1:$BL$10,3,FALSE) -> 15 | AD9: =T9-HLOOKUP(X9,Feuil1!$C$1:$BL$10,4,FALSE) -> -10 | AE9: =T9-HLOOKUP(X9,Feuil1!$C$1:$BL$10,5,FALSE) -> -35 | AF9: =T9-HLOOKUP(X9,Feuil1!$C$1:$BL$10,6,FALSE) -> -60 | AG9: =T9-HLOOKUP(X9,Feuil1!$C$1:$BL$10,7,FALSE) -> -90 | AH9: =T9-HLOOKUP(X9,Feuil1!$C$1:$BL$10,8,FALSE) -> -115 | AI9: =T9-HLOOKUP(X9,Feuil1!$C$1:$BL$10,9,FALSE) -> -135 | AJ9: =T9-HLOOKUP(X9,Feuil1!$C$1:$BL$10,10,FALSE) -> -155 | AQ9: DEP +
A10: F | B10: SEST | C10: RAL | H10: 1996 | I10: 58 | L10: 80 | O10: 80 | P10: 100 | S10: 100 | T10: 180 | U10: 253.4178084 | V10: INTA + | W10: 10 | X10: =IF(I10="","",IF(A10="H",IF(OR(H10="SEN",H10<1997),VLOOKUP(I10,Feuil1!$A$11:$G$29,6),IF(AND(H10>1996,H10<2000),VLOOKUP(I10,Feuil1!$A$11:$G$29,5),IF(AND(H10>1999,H10<2002),VLOOKUP(I10,Feuil1!$A$11:$G$29,4),IF(AND(H10>2001,H10<2004),VLOOKUP(I10,Feuil1!$A$11:$G$29,3),VLOOKUP(I10,Feuil1!$A$11:$G$29,2))))),IF(OR(H10="SEN",H10<1997),VLOOKUP(I10,Feuil1!$G$11:$L$25,6),IF(AND(H10>1996,H10<2000),VLOOKUP(I10,Feuil1!$G$11:$L$25,5),IF(AND(H10>1999,H10<2002),VLOOKUP(I10,Feuil1!$G$11:$L$25,4),IF(AND(H10>2001,H10<2004),VLOOKUP(I10,Feuil1!$G$11:$L$25,3),VLOOKUP(I10,Feuil1!$G$11:$L$25,2))))))) -> FS58 | AB10: =T10-HLOOKUP(X10,Feuil1!$C$1:$BL$10,2,FALSE) -> 110 | AC10: =T10-HLOOKUP(X10,Feuil1!$C$1:$BL$10,3,FALSE) -> 100 | AD10: =T10-HLOOKUP(X10,Feuil1!$C$1:$BL$10,4,FALSE) -> 90 | AE10: =T10-HLOOKUP(X10,Feuil1!$C$1:$BL$10,5,FALSE) -> 80 | AF10: =T10-HLOOKUP(X10,Feuil1!$C$1:$BL$10,6,FALSE) -> 65 | AG10: =T10-HLOOKUP(X10,Feuil1!$C$1:$BL$10,7,FALSE) -> 50 | AH10: =T10-HLOOKUP(X10,Feuil1!$C$1:$BL$10,8,FALSE) -> 30 | AI10: =T10-HLOOKUP(X10,Feuil1!$C$1:$BL$10,9,FALSE) -> 10 | AJ10: =T10-HLOOKUP(X10,Feuil1!$C$1:$BL$10,10,FALSE) -> -10 | AQ10: INTA +
A11: F | B11: SEST | C11: RAL | H11: 1997 | I11: 54 | L11: 60 | O11: 60 | P11: 80 | S11: 80 | T11: 140 | U11: 208.0742335 | V11: INTB + | W11: 10 | X11: =IF(I11="","",IF(A11="H",IF(OR(H11="SEN",H11<1997),VLOOKUP(I11,Feuil1!$A$11:$G$29,6),IF(AND(H11>1996,H11<2000),VLOOKUP(I11,Feuil1!$A$11:$G$29,5),IF(AND(H11>1999,H11<2002),VLOOKUP(I11,Feuil1!$A$11:$G$29,4),IF(AND(H11>2001,H11<2004),VLOOKUP(I11,Feuil1!$A$11:$G$29,3),VLOOKUP(I11,Feuil1!$A$11:$G$29,2))))),IF(OR(H11="SEN",H11<1997),VLOOKUP(I11,Feuil1!$G$11:$L$25,6),IF(AND(H11>1996,H11<2000),VLOOKUP(I11,Feuil1!$G$11:$L$25,5),IF(AND(H11>1999,H11<2002),VLOOKUP(I11,Feuil1!$G$11:$L$25,4),IF(AND(H11>2001,H11<2004),VLOOKUP(I11,Feuil1!$G$11:$L$25,3),VLOOKUP(I11,Feuil1!$G$11:$L$25,2))))))) -> FJ58 | AB11: =T11-HLOOKUP(X11,Feuil1!$C$1:$BL$10,2,FALSE) -> 80 | AC11: =T11-HLOOKUP(X11,Feuil1!$C$1:$BL$10,3,FALSE) -> 70 | AD11: =T11-HLOOKUP(X11,Feuil1!$C$1:$BL$10,4,FALSE) -> 60 | AE11: =T11-HLOOKUP(X11,Feuil1!$C$1:$BL$10,5,FALSE) -> 50 | AF11: =T11-HLOOKUP(X11,Feuil1!$C$1:$BL$10,6,FALSE) -> 40 | AG11: =T11-HLOOKUP(X11,Feuil1!$C$1:$BL$10,7,FALSE) -> 25 | AH11: =T11-HLOOKUP(X11,Feuil1!$C$1:$BL$10,8,FALSE) -> 10 | AI11: =T11-HLOOKUP(X11,Feuil1!$C$1:$BL$10,9,FALSE) -> -10 | AJ11: =T11-HLOOKUP(X11,Feuil1!$C$1:$BL$10,10,FALSE) -> -860 | AQ11: INTB +
B12: Tirage au sort : | H12: Classement : | L12: =IF(Y12="","",RANK(Y12,$Z$7:$Z$9,0)) -> 1 | Y12: =SUM(U13:U17) -> 1276.115951 | AB12: =T12-HLOOKUP(X12,Feuil1!$C$1:$BL$10,2,FALSE) ->  | AC12: =T12-HLOOKUP(X12,Feuil1!$C$1:$BL$10,3,FALSE) ->  | AD12: =T12-HLOOKUP(X12,Feuil1!$C$1:$BL$10,4,FALSE) ->  | AE12: =T12-HLOOKUP(X12,Feuil1!$C$1:$BL$10,5,FALSE) ->  | AF12: =T12-HLOOKUP(X12,Feuil1!$C$1:$BL$10,6,FALSE) ->  | AG12: =T12-HLOOKUP(X12,Feuil1!$C$1:$BL$10,7,FALSE) ->  | AH12: =T12-HLOOKUP(X12,Feuil1!$C$1:$BL$10,8,FALSE) ->  | AI12: =T12-HLOOKUP(X12,Feuil1!$C$1:$BL$10,9,FALSE) ->  | AJ12: =T12-HLOOKUP(X12,Feuil1!$C$1:$BL$10,10,FALSE) -> 
A13: H | B13: SEST | C13: RAL | H13: 2005 | I13: 75 | L13: 120 | O13: 120 | P13: 145 | S13: 145 | T13: 265 | U13: 338.7872753 | X13: =IF(I13="","",IF(A13="H",IF(OR(H13="SEN",H13<1997),VLOOKUP(I13,Feuil1!$A$11:$G$29,6),IF(AND(H13>1996,H13<2000),VLOOKUP(I13,Feuil1!$A$11:$G$29,5),IF(AND(H13>1999,H13<2002),VLOOKUP(I13,Feuil1!$A$11:$G$29,4),IF(AND(H13>2001,H13<2004),VLOOKUP(I13,Feuil1!$A$11:$G$29,3),VLOOKUP(I13,Feuil1!$A$11:$G$29,2))))),IF(OR(H13="SEN",H13<1997),VLOOKUP(I13,Feuil1!$G$11:$L$25,6),IF(AND(H13>1996,H13<2000),VLOOKUP(I13,Feuil1!$G$11:$L$25,5),IF(AND(H13>1999,H13<2002),VLOOKUP(I13,Feuil1!$G$11:$L$25,4),IF(AND(H13>2001,H13<2004),VLOOKUP(I13,Feuil1!$G$11:$L$25,3),VLOOKUP(I13,Feuil1!$G$11:$L$25,2))))))) -> NON | AB13: =T13-HLOOKUP(X13,Feuil1!$C$1:$BL$10,2,FALSE) ->  | AC13: =T13-HLOOKUP(X13,Feuil1!$C$1:$BL$10,3,FALSE) ->  | AD13: =T13-HLOOKUP(X13,Feuil1!$C$1:$BL$10,4,FALSE) ->  | AE13: =T13-HLOOKUP(X13,Feuil1!$C$1:$BL$10,5,FALSE) ->  | AF13: =T13-HLOOKUP(X13,Feuil1!$C$1:$BL$10,6,FALSE) ->  | AG13: =T13-HLOOKUP(X13,Feuil1!$C$1:$BL$10,7,FALSE) ->  | AH13: =T13-HLOOKUP(X13,Feuil1!$C$1:$BL$10,8,FALSE) ->  | AI13: =T13-HLOOKUP(X13,Feuil1!$C$1:$BL$10,9,FALSE) ->  | AJ13: =T13-HLOOKUP(X13,Feuil1!$C$1:$BL$10,10,FALSE) -> 
A14: H | B14: SEST | C14: RAL | H14: 1994 | I14: 75 | L14: 100 | O14: 100 | P14: 120 | S14: 120 | T14: 220 | U14: 281.2573607 | V14: IRG + | W14: 10 | X14: =IF(I14="","",IF(A14="H",IF(OR(H14="SEN",H14<1997),VLOOKUP(I14,Feuil1!$A$11:$G$29,6),IF(AND(H14>1996,H14<2000),VLOOKUP(I14,Feuil1!$A$11:$G$29,5),IF(AND(H14>1999,H14<2002),VLOOKUP(I14,Feuil1!$A$11:$G$29,4),IF(AND(H14>2001,H14<2004),VLOOKUP(I14,Feuil1!$A$11:$G$29,3),VLOOKUP(I14,Feuil1!$A$11:$G$29,2))))),IF(OR(H14="SEN",H14<1997),VLOOKUP(I14,Feuil1!$G$11:$L$25,6),IF(AND(H14>1996,H14<2000),VLOOKUP(I14,Feuil1!$G$11:$L$25,5),IF(AND(H14>1999,H14<2002),VLOOKUP(I14,Feuil1!$G$11:$L$25,4),IF(AND(H14>2001,H14<2004),VLOOKUP(I14,Feuil1!$G$11:$L$25,3),VLOOKUP(I14,Feuil1!$G$11:$L$25,2))))))) -> S77 | AB14: =T14-HLOOKUP(X14,Feuil1!$C$1:$BL$10,2,FALSE) -> 70 | AC14: =T14-HLOOKUP(X14,Feuil1!$C$1:$BL$10,3,FALSE) -> 50 | AD14: =T14-HLOOKUP(X14,Feuil1!$C$1:$BL$10,4,FALSE) -> 30 | AE14: =T14-HLOOKUP(X14,Feuil1!$C$1:$BL$10,5,FALSE) -> 10 | AF14: =T14-HLOOKUP(X14,Feuil1!$C$1:$BL$10,6,FALSE) -> -20 | AG14: =T14-HLOOKUP(X14,Feuil1!$C$1:$BL$10,7,FALSE) -> -45 | AH14: =T14-HLOOKUP(X14,Feuil1!$C$1:$BL$10,8,FALSE) -> -65 | AI14: =T14-HLOOKUP(X14,Feuil1!$C$1:$BL$10,9,FALSE) -> -85 | AJ14: =T14-HLOOKUP(X14,Feuil1!$C$1:$BL$10,10,FALSE) -> -100 | AQ14: IRG +
A15: H | B15: SEST | C15: RAL | H15: 1997 | I15: 75 | L15: 100 | O15: =IF(H15="","",IF(MAXA(L15:N15)<=0,0,MAXA(L15:N15))) -> 100 | P15: 110 | S15: =IF(H15="","",IF(MAXA(P15:R15)<=0,0,MAXA(P15:R15))) -> 110 | T15: =IF(H15="","",IF(OR(O15=0,S15=0),0,O15+S15)) -> 210 | U15: =IF(I15="","",IF(A15="H",10^(0.794358141*LOG(I15/174.393)^2)*T15,IF(A15="F",10^(0.89726074*LOG(I15/148.026)^2)*T15,""))) -> 268.4729352 | V15: =IF(H15="","",AQ15) -> FED + | W15: =IF(AJ15>=0,AJ15,IF(AI15>=0,AI15,IF(AH15>=0,AH15,IF(AG15>=0,AG15,IF(AF15>=0,AF15,IF(AE15>=0,AE15,IF(AD15>=0,AD15,IF(AC15>=0,AC15,AB15)))))))) -> 0 | X15: =IF(I15="","",IF(A15="H",IF(OR(H15="SEN",H15<1997),VLOOKUP(I15,Feuil1!$A$11:$G$29,6),IF(AND(H15>1996,H15<2000),VLOOKUP(I15,Feuil1!$A$11:$G$29,5),IF(AND(H15>1999,H15<2002),VLOOKUP(I15,Feuil1!$A$11:$G$29,4),IF(AND(H15>2001,H15<2004),VLOOKUP(I15,Feuil1!$A$11:$G$29,3),VLOOKUP(I15,Feuil1!$A$11:$G$29,2))))),IF(OR(H15="SEN",H15<1997),VLOOKUP(I15,Feuil1!$G$11:$L$25,6),IF(AND(H15>1996,H15<2000),VLOOKUP(I15,Feuil1!$G$11:$L$25,5),IF(AND(H15>1999,H15<2002),VLOOKUP(I15,Feuil1!$G$11:$L$25,4),IF(AND(H15>2001,H15<2004),VLOOKUP(I15,Feuil1!$G$11:$L$25,3),VLOOKUP(I15,Feuil1!$G$11:$L$25,2))))))) -> J77 | AB15: =T15-HLOOKUP(X15,Feuil1!$C$1:$BL$10,2,FALSE) -> 80 | AC15: =T15-HLOOKUP(X15,Feuil1!$C$1:$BL$10,3,FALSE) -> 60 | AD15: =T15-HLOOKUP(X15,Feuil1!$C$1:$BL$10,4,FALSE) -> 40 | AE15: =T15-HLOOKUP(X15,Feuil1!$C$1:$BL$10,5,FALSE) -> 20 | AF15: =T15-HLOOKUP(X15,Feuil1!$C$1:$BL$10,6,FALSE) -> 0 | AG15: =T15-HLOOKUP(X15,Feuil1!$C$1:$BL$10,7,FALSE) -> -30 | AH15: =T15-HLOOKUP(X15,Feuil1!$C$1:$BL$10,8,FALSE) -> -50 | AI15: =T15-HLOOKUP(X15,Feuil1!$C$1:$BL$10,9,FALSE) -> -75 | AJ15: =T15-HLOOKUP(X15,Feuil1!$C$1:$BL$10,10,FALSE) -> -9790 | AQ15: FED +
A16: F | B16: SEST | C16: RAL | H16: 1996 | I16: 63 | L16: 70 | O16: 70 | P16: 85 | S16: 85 | T16: 155 | U16: 205.9822837 | V16: NAT + | W16: 15 | X16: =IF(I16="","",IF(A16="H",IF(OR(H16="SEN",H16<1997),VLOOKUP(I16,Feuil1!$A$11:$G$29,6),IF(AND(H16>1996,H16<2000),VLOOKUP(I16,Feuil1!$A$11:$G$29,5),IF(AND(H16>1999,H16<2002),VLOOKUP(I16,Feuil1!$A$11:$G$29,4),IF(AND(H16>2001,H16<2004),VLOOKUP(I16,Feuil1!$A$11:$G$29,3),VLOOKUP(I16,Feuil1!$A$11:$G$29,2))))),IF(OR(H16="SEN",H16<1997),VLOOKUP(I16,Feuil1!$G$11:$L$25,6),IF(AND(H16>1996,H16<2000),VLOOKUP(I16,Feuil1!$G$11:$L$25,5),IF(AND(H16>1999,H16<2002),VLOOKUP(I16,Feuil1!$G$11:$L$25,4),IF(AND(H16>2001,H16<2004),VLOOKUP(I16,Feuil1!$G$11:$L$25,3),VLOOKUP(I16,Feuil1!$G$11:$L$25,2))))))) -> FS63 | AB16: =T16-HLOOKUP(X16,Feuil1!$C$1:$BL$10,2,FALSE) -> 80 | AC16: =T16-HLOOKUP(X16,Feuil1!$C$1:$BL$10,3,FALSE) -> 70 | AD16: =T16-HLOOKUP(X16,Feuil1!$C$1:$BL$10,4,FALSE) -> 60 | AE16: =T16-HLOOKUP(X16,Feuil1!$C$1:$BL$10,5,FALSE) -> 45 | AF16: =T16-HLOOKUP(X16,Feuil1!$C$1:$BL$10,6,FALSE) -> 30 | AG16: =T16-HLOOKUP(X16,Feuil1!$C$1:$BL$10,7,FALSE) -> 15 | AH16: =T16-HLOOKUP(X16,Feuil1!$C$1:$BL$10,8,FALSE) -> -5 | AI16: =T16-HLOOKUP(X16,Feuil1!$C$1:$BL$10,9,FALSE) -> -25 | AJ16: =T16-HLOOKUP(X16,Feuil1!$C$1:$BL$10,10,FALSE) -> -45 | AQ16: NAT +
A17: F | B17: SEST | C17: RAL | H17: 1997 | I17: 58 | L17: 59 | O17: 59 | P17: 70 | S17: 70 | T17: 129 | U17: 181.616096 | V17: NAT + | W17: 14 | X17: =IF(I17="","",IF(A17="H",IF(OR(H17="SEN",H17<1997),VLOOKUP(I17,Feuil1!$A$11:$G$29,6),IF(AND(H17>1996,H17<2000),VLOOKUP(I17,Feuil1!$A$11:$G$29,5),IF(AND(H17>1999,H17<2002),VLOOKUP(I17,Feuil1!$A$11:$G$29,4),IF(AND(H17>2001,H17<2004),VLOOKUP(I17,Feuil1!$A$11:$G$29,3),VLOOKUP(I17,Feuil1!$A$11:$G$29,2))))),IF(OR(H17="SEN",H17<1997),VLOOKUP(I17,Feuil1!$G$11:$L$25,6),IF(AND(H17>1996,H17<2000),VLOOKUP(I17,Feuil1!$G$11:$L$25,5),IF(AND(H17>1999,H17<2002),VLOOKUP(I17,Feuil1!$G$11:$L$25,4),IF(AND(H17>2001,H17<2004),VLOOKUP(I17,Feuil1!$G$11:$L$25,3),VLOOKUP(I17,Feuil1!$G$11:$L$25,2))))))) -> FJ58 | AB17: =T17-HLOOKUP(X17,Feuil1!$C$1:$BL$10,2,FALSE) -> 69 | AC17: =T17-HLOOKUP(X17,Feuil1!$C$1:$BL$10,3,FALSE) -> 59 | AD17: =T17-HLOOKUP(X17,Feuil1!$C$1:$BL$10,4,FALSE) -> 49 | AE17: =T17-HLOOKUP(X17,Feuil1!$C$1:$BL$10,5,FALSE) -> 39 | AF17: =T17-HLOOKUP(X17,Feuil1!$C$1:$BL$10,6,FALSE) -> 29 | AG17: =T17-HLOOKUP(X17,Feuil1!$C$1:$BL$10,7,FALSE) -> 14 | AH17: =T17-HLOOKUP(X17,Feuil1!$C$1:$BL$10,8,FALSE) -> -1 | AI17: =T17-HLOOKUP(X17,Feuil1!$C$1:$BL$10,9,FALSE) -> -21 | AJ17: =T17-HLOOKUP(X17,Feuil1!$C$1:$BL$10,10,FALSE) -> -871 | AQ17: NAT +
B18: Tirage au sort : | H18: Classement : | L18: =IF(Y18="","",RANK(Y18,$Z$7:$Z$9,0)) -> 2 | Y18: =SUM(U19:U23) -> 1197.150248 | AB18: =T18-HLOOKUP(X18,Feuil1!$C$1:$BL$10,2,FALSE) ->  | AC18: =T18-HLOOKUP(X18,Feuil1!$C$1:$BL$10,3,FALSE) ->  | AD18: =T18-HLOOKUP(X18,Feuil1!$C$1:$BL$10,4,FALSE) ->  | AE18: =T18-HLOOKUP(X18,Feuil1!$C$1:$BL$10,5,FALSE) ->  | AF18: =T18-HLOOKUP(X18,Feuil1!$C$1:$BL$10,6,FALSE) ->  | AG18: =T18-HLOOKUP(X18,Feuil1!$C$1:$BL$10,7,FALSE) ->  | AH18: =T18-HLOOKUP(X18,Feuil1!$C$1:$BL$10,8,FALSE) ->  | AI18: =T18-HLOOKUP(X18,Feuil1!$C$1:$BL$10,9,FALSE) ->  | AJ18: =T18-HLOOKUP(X18,Feuil1!$C$1:$BL$10,10,FALSE) -> 
A19: H | B19: SEST | C19: RAL | H19: 2003 | I19: 75 | L19: 100 | O19: 100 | P19: 110 | S19: 110 | T19: 210 | U19: 268.4729352 | V19: INTB + | W19: 10 | X19: =IF(I19="","",IF(A19="H",IF(OR(H19="SEN",H19<1997),VLOOKUP(I19,Feuil1!$A$11:$G$29,6),IF(AND(H19>1996,H19<2000),VLOOKUP(I19,Feuil1!$A$11:$G$29,5),IF(AND(H19>1999,H19<2002),VLOOKUP(I19,Feuil1!$A$11:$G$29,4),IF(AND(H19>2001,H19<2004),VLOOKUP(I19,Feuil1!$A$11:$G$29,3),VLOOKUP(I19,Feuil1!$A$11:$G$29,2))))),IF(OR(H19="SEN",H19<1997),VLOOKUP(I19,Feuil1!$G$11:$L$25,6),IF(AND(H19>1996,H19<2000),VLOOKUP(I19,Feuil1!$G$11:$L$25,5),IF(AND(H19>1999,H19<2002),VLOOKUP(I19,Feuil1!$G$11:$L$25,4),IF(AND(H19>2001,H19<2004),VLOOKUP(I19,Feuil1!$G$11:$L$25,3),VLOOKUP(I19,Feuil1!$G$11:$L$25,2))))))) -> C1 77 | AB19: =T19-HLOOKUP(X19,Feuil1!$C$1:$BL$10,2,FALSE) -> 120 | AC19: =T19-HLOOKUP(X19,Feuil1!$C$1:$BL$10,3,FALSE) -> 100 | AD19: =T19-HLOOKUP(X19,Feuil1!$C$1:$BL$10,4,FALSE) -> 80 | AE19: =T19-HLOOKUP(X19,Feuil1!$C$1:$BL$10,5,FALSE) -> 60 | AF19: =T19-HLOOKUP(X19,Feuil1!$C$1:$BL$10,6,FALSE) -> 40 | AG19: =T19-HLOOKUP(X19,Feuil1!$C$1:$BL$10,7,FALSE) -> 25 | AH19: =T19-HLOOKUP(X19,Feuil1!$C$1:$BL$10,8,FALSE) -> 10 | AI19: =T19-HLOOKUP(X19,Feuil1!$C$1:$BL$10,9,FALSE) -> -10 | AJ19: =T19-HLOOKUP(X19,Feuil1!$C$1:$BL$10,10,FALSE) -> -790 | AQ19: INTB +
A20: H | B20: SEST | C20: RAL | H20: 2000 | I20: 75 | L20: 100 | O20: 100 | P20: 120 | S20: 120 | T20: 220 | U20: 281.2573607 | V20: INTB + | W20: 0 | X20: =IF(I20="","",IF(A20="H",IF(OR(H20="SEN",H20<1997),VLOOKUP(I20,Feuil1!$A$11:$G$29,6),IF(AND(H20>1996,H20<2000),VLOOKUP(I20,Feuil1!$A$11:$G$29,5),IF(AND(H20>1999,H20<2002),VLOOKUP(I20,Feuil1!$A$11:$G$29,4),IF(AND(H20>2001,H20<2004),VLOOKUP(I20,Feuil1!$A$11:$G$29,3),VLOOKUP(I20,Feuil1!$A$11:$G$29,2))))),IF(OR(H20="SEN",H20<1997),VLOOKUP(I20,Feuil1!$G$11:$L$25,6),IF(AND(H20>1996,H20<2000),VLOOKUP(I20,Feuil1!$G$11:$L$25,5),IF(AND(H20>1999,H20<2002),VLOOKUP(I20,Feuil1!$G$11:$L$25,4),IF(AND(H20>2001,H20<2004),VLOOKUP(I20,Feuil1!$G$11:$L$25,3),VLOOKUP(I20,Feuil1!$G$11:$L$25,2))))))) -> C2 77 | AB20: =T20-HLOOKUP(X20,Feuil1!$C$1:$BL$10,2,FALSE) -> 110 | AC20: =T20-HLOOKUP(X20,Feuil1!$C$1:$BL$10,3,FALSE) -> 90 | AD20: =T20-HLOOKUP(X20,Feuil1!$C$1:$BL$10,4,FALSE) -> 70 | AE20: =T20-HLOOKUP(X20,Feuil1!$C$1:$BL$10,5,FALSE) -> 50 | AF20: =T20-HLOOKUP(X20,Feuil1!$C$1:$BL$10,6,FALSE) -> 35 | AG20: =T20-HLOOKUP(X20,Feuil1!$C$1:$BL$10,7,FALSE) -> 20 | AH20: =T20-HLOOKUP(X20,Feuil1!$C$1:$BL$10,8,FALSE) -> 0 | AI20: =T20-HLOOKUP(X20,Feuil1!$C$1:$BL$10,9,FALSE) -> -30 | AJ20: =T20-HLOOKUP(X20,Feuil1!$C$1:$BL$10,10,FALSE) -> -780 | AQ20: INTB +
A21: H | B21: SEST | C21: RAL | H21: 1997 | I21: 75 | L21: 100 | O21: =IF(H21="","",IF(MAXA(L21:N21)<=0,0,MAXA(L21:N21))) -> 100 | P21: 110 | S21: =IF(H21="","",IF(MAXA(P21:R21)<=0,0,MAXA(P21:R21))) -> 110 | T21: =IF(H21="","",IF(OR(O21=0,S21=0),0,O21+S21)) -> 210 | U21: =IF(I21="","",IF(A21="H",10^(0.794358141*LOG(I21/174.393)^2)*T21,IF(A21="F",10^(0.89726074*LOG(I21/148.026)^2)*T21,""))) -> 268.4729352 | V21: =IF(H21="","",AQ21) -> FED + | W21: =IF(AJ21>=0,AJ21,IF(AI21>=0,AI21,IF(AH21>=0,AH21,IF(AG21>=0,AG21,IF(AF21>=0,AF21,IF(AE21>=0,AE21,IF(AD21>=0,AD21,IF(AC21>=0,AC21,AB21)))))))) -> 0 | X21: =IF(I21="","",IF(A21="H",IF(OR(H21="SEN",H21<1997),VLOOKUP(I21,Feuil1!$A$11:$G$29,6),IF(AND(H21>1996,H21<2000),VLOOKUP(I21,Feuil1!$A$11:$G$29,5),IF(AND(H21>1999,H21<2002),VLOOKUP(I21,Feuil1!$A$11:$G$29,4),IF(AND(H21>2001,H21<2004),VLOOKUP(I21,Feuil1!$A$11:$G$29,3),VLOOKUP(I21,Feuil1!$A$11:$G$29,2))))),IF(OR(H21="SEN",H21<1997),VLOOKUP(I21,Feuil1!$G$11:$L$25,6),IF(AND(H21>1996,H21<2000),VLOOKUP(I21,Feuil1!$G$11:$L$25,5),IF(AND(H21>1999,H21<2002),VLOOKUP(I21,Feuil1!$G$11:$L$25,4),IF(AND(H21>2001,H21<2004),VLOOKUP(I21,Feuil1!$G$11:$L$25,3),VLOOKUP(I21,Feuil1!$G$11:$L$25,2))))))) -> J77 | AB21: =T21-HLOOKUP(X21,Feuil1!$C$1:$BL$10,2,FALSE) -> 80 | AC21: =T21-HLOOKUP(X21,Feuil1!$C$1:$BL$10,3,FALSE) -> 60 | AD21: =T21-HLOOKUP(X21,Feuil1!$C$1:$BL$10,4,FALSE) -> 40 | AE21: =T21-HLOOKUP(X21,Feuil1!$C$1:$BL$10,5,FALSE) -> 20 | AF21: =T21-HLOOKUP(X21,Feuil1!$C$1:$BL$10,6,FALSE) -> 0 | AG21: =T21-HLOOKUP(X21,Feuil1!$C$1:$BL$10,7,FALSE) -> -30 | AH21: =T21-HLOOKUP(X21,Feuil1!$C$1:$BL$10,8,FALSE) -> -50 | AI21: =T21-HLOOKUP(X21,Feuil1!$C$1:$BL$10,9,FALSE) -> -75 | AJ21: =T21-HLOOKUP(X21,Feuil1!$C$1:$BL$10,10,FALSE) -> -9790 | AQ21: FED +
A22: F | B22: SEST | C22: RAL | H22: 1996 | I22: 75 | L22: 80 | O22: 80 | P22: 95 | S22: 95 | T22: 175 | U22: 209.5408663 | V22: NAT + | W22: 15 | X22: =IF(I22="","",IF(A22="H",IF(OR(H22="SEN",H22<1997),VLOOKUP(I22,Feuil1!$A$11:$G$29,6),IF(AND(H22>1996,H22<2000),VLOOKUP(I22,Feuil1!$A$11:$G$29,5),IF(AND(H22>1999,H22<2002),VLOOKUP(I22,Feuil1!$A$11:$G$29,4),IF(AND(H22>2001,H22<2004),VLOOKUP(I22,Feuil1!$A$11:$G$29,3),VLOOKUP(I22,Feuil1!$A$11:$G$29,2))))),IF(OR(H22="SEN",H22<1997),VLOOKUP(I22,Feuil1!$G$11:$L$25,6),IF(AND(H22>1996,H22<2000),VLOOKUP(I22,Feuil1!$G$11:$L$25,5),IF(AND(H22>1999,H22<2002),VLOOKUP(I22,Feuil1!$G$11:$L$25,4),IF(AND(H22>2001,H22<2004),VLOOKUP(I22,Feuil1!$G$11:$L$25,3),VLOOKUP(I22,Feuil1!$G$11:$L$25,2))))))) -> FS75 | AB22: =T22-HLOOKUP(X22,Feuil1!$C$1:$BL$10,2,FALSE) -> 80 | AC22: =T22-HLOOKUP(X22,Feuil1!$C$1:$BL$10,3,FALSE) -> 70 | AD22: =T22-HLOOKUP(X22,Feuil1!$C$1:$BL$10,4,FALSE) -> 60 | AE22: =T22-HLOOKUP(X22,Feuil1!$C$1:$BL$10,5,FALSE) -> 45 | AF22: =T22-HLOOKUP(X22,Feuil1!$C$1:$BL$10,6,FALSE) -> 30 | AG22: =T22-HLOOKUP(X22,Feuil1!$C$1:$BL$10,7,FALSE) -> 15 | AH22: =T22-HLOOKUP(X22,Feuil1!$C$1:$BL$10,8,FALSE) -> -5 | AI22: =T22-HLOOKUP(X22,Feuil1!$C$1:$BL$10,9,FALSE) -> -20 | AJ22: =T22-HLOOKUP(X22,Feuil1!$C$1:$BL$10,10,FALSE) -> -35 | AQ22: NAT +
A23: F | B23: SEST | C23: RAL | H23: 1997 | I23: 69 | L23: 60 | O23: 60 | P23: 75 | S23: 75 | T23: 135 | U23: 169.4061508 | V23: NAT + | W23: 0 | X23: =IF(I23="","",IF(A23="H",IF(OR(H23="SEN",H23<1997),VLOOKUP(I23,Feuil1!$A$11:$G$29,6),IF(AND(H23>1996,H23<2000),VLOOKUP(I23,Feuil1!$A$11:$G$29,5),IF(AND(H23>1999,H23<2002),VLOOKUP(I23,Feuil1!$A$11:$G$29,4),IF(AND(H23>2001,H23<2004),VLOOKUP(I23,Feuil1!$A$11:$G$29,3),VLOOKUP(I23,Feuil1!$A$11:$G$29,2))))),IF(OR(H23="SEN",H23<1997),VLOOKUP(I23,Feuil1!$G$11:$L$25,6),IF(AND(H23>1996,H23<2000),VLOOKUP(I23,Feuil1!$G$11:$L$25,5),IF(AND(H23>1999,H23<2002),VLOOKUP(I23,Feuil1!$G$11:$L$25,4),IF(AND(H23>2001,H23<2004),VLOOKUP(I23,Feuil1!$G$11:$L$25,3),VLOOKUP(I23,Feuil1!$G$11:$L$25,2))))))) -> FJ69 | AB23: =T23-HLOOKUP(X23,Feuil1!$C$1:$BL$10,2,FALSE) -> 65 | AC23: =T23-HLOOKUP(X23,Feuil1!$C$1:$BL$10,3,FALSE) -> 55 | AD23: =T23-HLOOKUP(X23,Feuil1!$C$1:$BL$10,4,FALSE) -> 45 | AE23: =T23-HLOOKUP(X23,Feuil1!$C$1:$BL$10,5,FALSE) -> 30 | AF23: =T23-HLOOKUP(X23,Feuil1!$C$1:$BL$10,6,FALSE) -> 15 | AG23: =T23-HLOOKUP(X23,Feuil1!$C$1:$BL$10,7,FALSE) -> 0 | AH23: =T23-HLOOKUP(X23,Feuil1!$C$1:$BL$10,8,FALSE) -> -15 | AI23: =T23-HLOOKUP(X23,Feuil1!$C$1:$BL$10,9,FALSE) -> -35 | AJ23: =T23-HLOOKUP(X23,Feuil1!$C$1:$BL$10,10,FALSE) -> -865 | AQ23: NAT +
AB24: =T24-HLOOKUP(X24,Feuil1!$C$1:$BL$10,2,FALSE) ->  | AC24: =T24-HLOOKUP(X24,Feuil1!$C$1:$BL$10,3,FALSE) ->  | AD24: =T24-HLOOKUP(X24,Feuil1!$C$1:$BL$10,4,FALSE) ->  | AE24: =T24-HLOOKUP(X24,Feuil1!$C$1:$BL$10,5,FALSE) ->  | AF24: =T24-HLOOKUP(X24,Feuil1!$C$1:$BL$10,6,FALSE) ->  | AG24: =T24-HLOOKUP(X24,Feuil1!$C$1:$BL$10,7,FALSE) ->  | AH24: =T24-HLOOKUP(X24,Feuil1!$C$1:$BL$10,8,FALSE) ->  | AI24: =T24-HLOOKUP(X24,Feuil1!$C$1:$BL$10,9,FALSE) ->  | AJ24: =T24-HLOOKUP(X24,Feuil1!$C$1:$BL$10,10,FALSE) -> 
AB25: =T25-HLOOKUP(X25,Feuil1!$C$1:$BL$10,2,FALSE) ->  | AC25: =T25-HLOOKUP(X25,Feuil1!$C$1:$BL$10,3,FALSE) ->  | AD25: =T25-HLOOKUP(X25,Feuil1!$C$1:$BL$10,4,FALSE) ->  | AE25: =T25-HLOOKUP(X25,Feuil1!$C$1:$BL$10,5,FALSE) ->  | AF25: =T25-HLOOKUP(X25,Feuil1!$C$1:$BL$10,6,FALSE) ->  | AG25: =T25-HLOOKUP(X25,Feuil1!$C$1:$BL$10,7,FALSE) ->  | AH25: =T25-HLOOKUP(X25,Feuil1!$C$1:$BL$10,8,FALSE) ->  | AI25: =T25-HLOOKUP(X25,Feuil1!$C$1:$BL$10,9,FALSE) ->  | AJ25: =T25-HLOOKUP(X25,Feuil1!$C$1:$BL$10,10,FALSE) -> 
B26: Secrétaire : | J26: 1 | AB26: =T26-HLOOKUP(X26,Feuil1!$C$1:$BL$10,2,FALSE) ->  | AC26: =T26-HLOOKUP(X26,Feuil1!$C$1:$BL$10,3,FALSE) ->  | AD26: =T26-HLOOKUP(X26,Feuil1!$C$1:$BL$10,4,FALSE) ->  | AE26: =T26-HLOOKUP(X26,Feuil1!$C$1:$BL$10,5,FALSE) ->  | AF26: =T26-HLOOKUP(X26,Feuil1!$C$1:$BL$10,6,FALSE) ->  | AG26: =T26-HLOOKUP(X26,Feuil1!$C$1:$BL$10,7,FALSE) ->  | AH26: =T26-HLOOKUP(X26,Feuil1!$C$1:$BL$10,8,FALSE) ->  | AI26: =T26-HLOOKUP(X26,Feuil1!$C$1:$BL$10,9,FALSE) ->  | AJ26: =T26-HLOOKUP(X26,Feuil1!$C$1:$BL$10,10,FALSE) -> 
I27: ARBITRES : 2 | R27: Signatures : | AB27: =T27-HLOOKUP(X27,Feuil1!$C$1:$BL$10,2,FALSE) ->  | AC27: =T27-HLOOKUP(X27,Feuil1!$C$1:$BL$10,3,FALSE) ->  | AD27: =T27-HLOOKUP(X27,Feuil1!$C$1:$BL$10,4,FALSE) ->  | AE27: =T27-HLOOKUP(X27,Feuil1!$C$1:$BL$10,5,FALSE) ->  | AF27: =T27-HLOOKUP(X27,Feuil1!$C$1:$BL$10,6,FALSE) ->  | AG27: =T27-HLOOKUP(X27,Feuil1!$C$1:$BL$10,7,FALSE) ->  | AH27: =T27-HLOOKUP(X27,Feuil1!$C$1:$BL$10,8,FALSE) ->  | AI27: =T27-HLOOKUP(X27,Feuil1!$C$1:$BL$10,9,FALSE) ->  | AJ27: =T27-HLOOKUP(X27,Feuil1!$C$1:$BL$10,10,FALSE) -> 
B28: Contrôleur Technique 1 : | J28: 3 | AB28: =T28-HLOOKUP(X28,Feuil1!$C$1:$BL$10,2,FALSE) ->  | AC28: =T28-HLOOKUP(X28,Feuil1!$C$1:$BL$10,3,FALSE) ->  | AD28: =T28-HLOOKUP(X28,Feuil1!$C$1:$BL$10,4,FALSE) ->  | AE28: =T28-HLOOKUP(X28,Feuil1!$C$1:$BL$10,5,FALSE) ->  | AF28: =T28-HLOOKUP(X28,Feuil1!$C$1:$BL$10,6,FALSE) ->  | AG28: =T28-HLOOKUP(X28,Feuil1!$C$1:$BL$10,7,FALSE) ->  | AH28: =T28-HLOOKUP(X28,Feuil1!$C$1:$BL$10,8,FALSE) ->  | AI28: =T28-HLOOKUP(X28,Feuil1!$C$1:$BL$10,9,FALSE) ->  | AJ28: =T28-HLOOKUP(X28,Feuil1!$C$1:$BL$10,10,FALSE) -> 
B29: Contrôleur Technique 2 : | AB29: =T29-HLOOKUP(X29,Feuil1!$C$1:$BL$10,2,FALSE) ->  | AC29: =T29-HLOOKUP(X29,Feuil1!$C$1:$BL$10,3,FALSE) ->  | AD29: =T29-HLOOKUP(X29,Feuil1!$C$1:$BL$10,4,FALSE) ->  | AE29: =T29-HLOOKUP(X29,Feuil1!$C$1:$BL$10,5,FALSE) ->  | AF29: =T29-HLOOKUP(X29,Feuil1!$C$1:$BL$10,6,FALSE) ->  | AG29: =T29-HLOOKUP(X29,Feuil1!$C$1:$BL$10,7,FALSE) ->  | AH29: =T29-HLOOKUP(X29,Feuil1!$C$1:$BL$10,8,FALSE) ->  | AI29: =T29-HLOOKUP(X29,Feuil1!$C$1:$BL$10,9,FALSE) ->  | AJ29: =T29-HLOOKUP(X29,Feuil1!$C$1:$BL$10,10,FALSE) -> 
B30: Chronométreur : | J30: JURY :
AB525: J77 | AC525: J85 | AD525: J94 | AE525: J105 | AF525: J+105 | AH525: J56 | AI525: J62 | AJ525: J69 | AK525: J77 | AL525: J85 | AM525: J94 | AN525: J105 | AO525: J+105 | AQ525: S56 | AR525: S62 | AS525: S69 | AT525: S77 | AU525: S85 | AV525: S94 | AW525: S105 | AX525: S+105
AB526: 145 | AC526: 160 | AD526: 170 | AE526: 180 | AF526: 190 | AH526: 100 | AI526: 115 | AJ526: 130 | AK526: 145 | AL526: 160 | AM526: 170 | AN526: 180 | AO526: 190 | AQ526: 115 | AR526: 135 | AS526: 150 | AT526: 165 | AU526: 180 | AV526: 190 | AW526: 200 | AX526: 210
AB527: 165 | AC527: 180 | AD527: 190 | AE527: 200 | AF527: 210 | AH527: 115 | AI527: 135 | AJ527: 150 | AK527: 165 | AL527: 180 | AM527: 190 | AN527: 200 | AO527: 210 | AQ527: 130 | AR527: 150 | AS527: 165 | AT527: 185 | AU527: 200 | AV527: 210 | AW527: 220 | AX527: 230
AB528: 185 | AC528: 200 | AD528: 210 | AE528: 220 | AF528: 230 | AH528: 130 | AI528: 150 | AJ528: 165 | AK528: 185 | AL528: 200 | AM528: 210 | AN528: 220 | AO528: 230 | AQ528: 145 | AR528: 165 | AS528: 180 | AT528: 200 | AU528: 220 | AV528: 230 | AW528: 240 | AX528: 250
AB529: 200 | AC529: 220 | AD529: 230 | AE529: 240 | AF529: 250 | AH529: 145 | AI529: 165 | AJ529: 180 | AK529: 200 | AL529: 220 | AM529: 230 | AN529: 240 | AO529: 250 | AQ529: 175 | AR529: 195 | AS529: 215 | AT529: 235 | AU529: 250 | AV529: 260 | AW529: 275 | AX529: 280
AB530: 235 | AC530: 250 | AD530: 260 | AE530: 275 | AF530: 280 | AH530: 175 | AI530: 195 | AJ530: 215 | AK530: 235 | AL530: 250 | AM530: 260 | AN530: 275 | AO530: 280 | AQ530: 210 | AR530: 230 | AS530: 250 | AT530: 270 | AU530: 290 | AV530: 300 | AW530: 310 | AX530: 325
AB531: 270 | AC531: 290 | AD531: 300 | AE531: 310 | AF531: 325 | AH531: 210 | AI531: 230 | AJ531: 250 | AK531: 270 | AL531: 290 | AM531: 300 | AN531: 310 | AO531: 325 | AQ531: 230 | AR531: 255 | AS531: 275 | AT531: 300 | AU531: 315 | AV531: 335 | AW531: 345 | AX531: 355
AB532: 320 | AC532: 335 | AD532: 355 | AE532: 370 | AF532: 380 | AH532: 245 | AI532: 270 | AJ532: 295 | AK532: 320 | AL532: 335 | AM532: 355 | AN532: 370 | AO532: 380 | AQ532: 245 | AR532: 270 | AS532: 295 | AT532: 320 | AU532: 335 | AV532: 355 | AW532: 370 | AX532: 380

Sheet Feuil1 (hidden)
C1: FC1 40 | D1: FC1 44 | E1: FC1 48 | F1: FC1 53 | G1: FC1 58 | H1: FC1 63 | I1: FC1 69 | J1: FC1 +69 | K1: FC2 44 | L1: FC2 48 | M1: FC2 53 | N1: FC2 58 | O1: FC2 63 | P1: FC2 69 | Q1: FC2 +69 | R1: FJ48 | S1: FJ53 | T1: FJ58 | U1: FJ63 | V1: FJ69 | W1: FJ75 | X1: FJ+75 | Y1: FS48 | Z1: FS53 | AA1: FS58 | AB1: FS63 | AC1: FS69 | AD1: FS75 | AE1: FS+75 | AF1: C1 45 | AG1: C1 50 | AH1: C1 56 | AI1: C1 62 | AJ1: C1 69 | AK1: C1 77 | AL1: C1 85 | AM1: C1 94 | AN1: C1 +94 | AO1: C2 50 | AP1: C2 56 | AQ1: C2 62 | AR1: C2 69 | AS1: C2 77 | AT1: C2 85 | AU1: C2 94 | AV1: C2 +94 | AW1: J56 | AX1: J62 | AY1: J69 | AZ1: J77 | BA1: J85 | BB1: J94 | BC1: J105 | BD1: J+105 | BE1: S56 | BF1: S62 | BG1: S69 | BH1: S77 | BI1: S85 | BJ1: S94 | BK1: S105 | BL1: S+105
B2: DEBUTANT | C2: 20 | D2: 25 | E2: 30 | F2: 35 | G2: 40 | H2: 45 | I2: 50 | J2: 60 | K2: 30 | L2: 35 | M2: 45 | N2: 50 | O2: 55 | P2: 60 | Q2: 70 | R2: 45 | S2: 55 | T2: 60 | U2: 65 | V2: 70 | W2: 80 | X2: 90 | Y2: 55 | Z2: 65 | AA2: 70 | AB2: 75 | AC2: 80 | AD2: 95 | AE2: 100 | AF2: 35 | AG2: 40 | AH2: 50 | AI2: 75 | AJ2: 85 | AK2: 90 | AL2: 100 | AM2: 110 | AN2: 120 | AO2: 45 | AP2: 65 | AQ2: 85 | AR2: 95 | AS2: 110 | AT2: 120 | AU2: 125 | AV2: 135 | AW2: 80 | AX2: 90 | AY2: 110 | AZ2: 130 | BA2: 145 | BB2: 150 | BC2: 155 | BD2: 165 | BE2: 95 | BF2: 120 | BG2: 130 | BH2: 150 | BI2: 165 | BJ2: 170 | BK2: 175 | BL2: 185
B3: DEPARTEMENTAL | C3: 25 | D3: 30 | E3: 35 | F3: 45 | G3: 50 | H3: 55 | I3: 60 | J3: 70 | K3: 40 | L3: 45 | M3: 55 | N3: 60 | O3: 65 | P3: 70 | Q3: 80 | R3: 55 | S3: 65 | T3: 70 | U3: 75 | V3: 80 | W3: 95 | X3: 100 | Y3: 65 | Z3: 75 | AA3: 80 | AB3: 85 | AC3: 90 | AD3: 105 | AE3: 110 | AF3: 50 | AG3: 55 | AH3: 70 | AI3: 95 | AJ3: 105 | AK3: 110 | AL3: 120 | AM3: 130 | AN3: 140 | AO3: 65 | AP3: 85 | AQ3: 105 | AR3: 115 | AS3: 130 | AT3: 140 | AU3: 145 | AV3: 155 | AW3: 100 | AX3: 120 | AY3: 130 | AZ3: 150 | BA3: 165 | BB3: 170 | BC3: 175 | BD3: 185 | BE3: 115 | BF3: 135 | BG3: 150 | BH3: 170 | BI3: 185 | BJ3: 190 | BK3: 195 | BL3: 205
B4: REGIONAL | C4: 35 | D4: 40 | E4: 45 | F4: 55 | G4: 60 | H4: 65 | I4: 70 | J4: 80 | K4: 50 | L4: 55 | M4: 65 | N4: 70 | O4: 75 | P4: 80 | Q4: 95 | R4: 65 | S4: 75 | T4: 80 | U4: 85 | V4: 90 | W4: 105 | X4: 110 | Y4: 75 | Z4: 85 | AA4: 90 | AB4: 95 | AC4: 105 | AD4: 115 | AE4: 125 | AF4: 60 | AG4: 65 | AH4: 85 | AI4: 105 | AJ4: 115 | AK4: 130 | AL4: 140 | AM4: 145 | AN4: 155 | AO4: 80 | AP4: 100 | AQ4: 120 | AR4: 130 | AS4: 150 | AT4: 160 | AU4: 165 | AV4: 175 | AW4: 115 | AX4: 135 | AY4: 150 | AZ4: 170 | BA4: 185 | BB4: 190 | BC4: 195 | BD4: 205 | BE4: 130 | BF4: 150 | BG4: 170 | BH4: 190 | BI4: 205 | BJ4: 215 | BK4: 220 | BL4: 225
B5: INTERREGIONAL | C5: 45 | D5: 50 | E5: 55 | F5: 65 | G5: 70 | H5: 75 | I5: 80 | J5: 95 | K5: 60 | L5: 65 | M5: 75 | N5: 80 | O5: 85 | P5: 90 | Q5: 105 | R5: 75 | S5: 85 | T5: 90 | U5: 95 | V5: 105 | W5: 115 | X5: 125 | Y5: 85 | Z5: 95 | AA5: 100 | AB5: 110 | AC5: 120 | AD5: 130 | AE5: 140 | AF5: 75 | AG5: 80 | AH5: 100 | AI5: 120 | AJ5: 130 | AK5: 150 | AL5: 160 | AM5: 165 | AN5: 175 | AO5: 95 | AP5: 115 | AQ5: 135 | AR5: 150 | AS5: 170 | AT5: 180 | AU5: 185 | AV5: 195 | AW5: 130 | AX5: 150 | AY5: 170 | AZ5: 190 | BA5: 205 | BB5: 215 | BC5: 220 | BD5: 225 | BE5: 145 | BF5: 170 | BG5: 190 | BH5: 210 | BI5: 225 | BJ5: 235 | BK5: 245 | BL5: 250
B6: FEDERAL | C6: 50 | D6: 60 | E6: 65 | F6: 75 | G6: 80 | H6: 85 | I6: 90 | J6: 105 | K6: 70 | L6: 75 | M6: 85 | N6: 90 | O6: 95 | P6: 105 | Q6: 115 | R6: 85 | S6: 95 | T6: 100 | U6: 110 | V6: 120 | W6: 130 | X6: 140 | Y6: 95 | Z6: 105 | AA6: 115 | AB6: 125 | AC6: 135 | AD6: 145 | AE6: 150 | AF6: 90 | AG6: 95 | AH6: 115 | AI6: 135 | AJ6: 150 | AK6: 170 | AL6: 180 | AM6: 185 | AN6: 195 | AO6: 110 | AP6: 130 | AQ6: 150 | AR6: 170 | AS6: 185 | AT6: 200 | AU6: 210 | AV6: 220 | AW6: 145 | AX6: 170 | AY6: 190 | AZ6: 210 | BA6: 225 | BB6: 235 | BC6: 245 | BD6: 250 | BE6: 170 | BF6: 190 | BG6: 220 | BH6: 240 | BI6: 250 | BJ6: 260 | BK6: 270 | BL6: 280
B7: NATIONAL | C7: 60 | D7: 70 | E7: 75 | F7: 85 | G7: 90 | H7: 95 | I7: 105 | J7: 115 | K7: 80 | L7: 85 | M7: 95 | N7: 100 | O7: 110 | P7: 120 | Q7: 130 | R7: 95 | S7: 105 | T7: 115 | U7: 125 | V7: 135 | W7: 145 | X7: 150 | Y7: 110 | Z7: 120 | AA7: 130 | AB7: 140 | AC7: 150 | AD7: 160 | AE7: 170 | AF7: 105 | AG7: 110 | AH7: 130 | AI7: 150 | AJ7: 170 | AK7: 185 | AL7: 200 | AM7: 210 | AN7: 220 | AO7: 120 | AP7: 145 | AQ7: 170 | AR7: 190 | AS7: 200 | AT7: 220 | AU7: 225 | AV7: 235 | AW7: 170 | AX7: 190 | AY7: 220 | AZ7: 240 | BA7: 250 | BB7: 260 | BC7: 270 | BD7: 280 | BE7: 190 | BF7: 210 | BG7: 240 | BH7: 265 | BI7: 280 | BJ7: 290 | BK7: 300 | BL7: 310
B8: INTERNATIONAL B | C8: 70 | D8: 80 | E8: 85 | F8: 95 | G8: 100 | H8: 110 | I8: 120 | J8: 130 | K8: 90 | L8: 95 | M8: 105 | N8: 115 | O8: 125 | P8: 135 | Q8: 145 | R8: 110 | S8: 120 | T8: 130 | U8: 140 | V8: 150 | W8: 160 | X8: 170 | Y8: 125 | Z8: 140 | AA8: 150 | AB8: 160 | AC8: 170 | AD8: 180 | AE8: 190 | AF8: 115 | AG8: 120 | AH8: 145 | AI8: 170 | AJ8: 190 | AK8: 200 | AL8: 220 | AM8: 225 | AN8: 235 | AO8: 135 | AP8: 170 | AQ8: 190 | AR8: 210 | AS8: 220 | AT8: 240 | AU8: 250 | AV8: 260 | AW8: 190 | AX8: 210 | AY8: 240 | AZ8: 260 | BA8: 280 | BB8: 290 | BC8: 300 | BD8: 310 | BE8: 210 | BF8: 230 | BG8: 260 | BH8: 285 | BI8: 300 | BJ8: 310 | BK8: 325 | BL8: 330
B9: INTERNATIONAL A | C9: 80 | D9: 90 | E9: 95 | F9: 105 | G9: 115 | H9: 125 | I9: 135 | J9: 145 | K9: 100 | L9: 110 | M9: 120 | N9: 130 | O9: 140 | P9: 150 | Q9: 160 | R9: 125 | S9: 135 | T9: 150 | U9: 160 | V9: 170 | W9: 180 | X9: 190 | Y9: 140 | Z9: 160 | AA9: 170 | AB9: 180 | AC9: 190 | AD9: 195 | AE9: 210 | AF9: 130 | AG9: 135 | AH9: 170 | AI9: 190 | AJ9: 210 | AK9: 220 | AL9: 240 | AM9: 250 | AN9: 260 | AO9: 150 | AP9: 190 | AQ9: 210 | AR9: 230 | AS9: 250 | AT9: 260 | AU9: 280 | AV9: 280 | AW9: 210 | AX9: 230 | AY9: 250 | AZ9: 285 | BA9: 300 | BB9: 310 | BC9: 325 | BD9: 330 | BE9: 225 | BF9: 255 | BG9: 275 | BH9: 305 | BI9: 325 | BJ9: 330 | BK9: 345 | BL9: 355
B10: OLYMPIQUE | C10: 1000 | D10: 1000 | E10: 1000 | F10: 1000 | G10: 1000 | H10: 1000 | I10: 1000 | J10: 1000 | K10: 1000 | L10: 1000 | M10: 1000 | N10: 1000 | O10: 1000 | P10: 1000 | Q10: 1000 | R10: 1000 | S10: 1000 | T10: 1000 | U10: 1000 | V10: 1000 | W10: 1000 | X10: 1000 | Y10: 155 | Z10: 175 | AA10: 190 | AB10: 200 | AC10: 205 | AD10: 210 | AE10: 225 | AF10: 1000 | AG10: 1000 | AH10: 1000 | AI10: 1000 | AJ10: 1000 | AK10: 1000 | AL10: 10000 | AM10: 1000 | AN10: 1000 | AO10: 1000 | AP10: 1000 | AQ10: 1000 | AR10: 1000 | AS10: 1000 | AT10: 10000 | AU10: 1000 | AV10: 1000 | AW10: 1000 | AX10: 1000 | AY10: 1000 | AZ10: 10000 | BA10: 1000 | BB10: 1000 | BC10: 1000 | BD10: 10000 | BE10: 240 | BF10: 270 | BG10: 290 | BH10: 320 | BI10: 345 | BJ10: 355 | BK10: 365 | BL10: 375
B11: MINIME | C11: CADET | D11: CADET | E11: JUNIOR | F11: SENIOR | H11: MINIME | I11: CADETTE | J11: CADETTE | K11: JUNIOR | L11: SENIOR
A12: 20.01 | B12: NON | C12: C1 45 | D12: C2 50 | E12: J56 | F12: S56 | G12: 20.01 | H12: NON | I12: FC1 40 | J12: FC2 44 | K12: FJ48 | L12: FS48
A13: 34.01 | B13: NON | C13: C1 45 | D13: C2 50 | E13: J56 | F13: S56 | G13: 30.01 | H13: NON | I13: FC1 40 | J13: FC2 44 | K13: FJ48 | L13: FS48
A14: 38.01 | B14: NON | C14: C1 45 | D14: C2 50 | E14: J56 | F14: S56 | G14: 35.01 | H14: NON | I14: FC1 40 | J14: FC2 44 | K14: FJ48 | L14: FS48
A15: 40.01 | B15: NON | C15: C1 45 | D15: C2 50 | E15: J56 | F15: S56 | G15: 36.01 | H15: NON | I15: FC1 40 | J15: FC2 44 | K15: FJ48 | L15: FS48
A16: 45.01 | B16: NON | C16: C1 50 | D16: C2 50 | E16: J56 | F16: S56 | G16: 40.01 | H16: NON | I16: FC1 44 | J16: FC2 44 | K16: FJ48 | L16: FS48
A17: 50.01 | B17: NON | C17: C1 56 | D17: C2 56 | E17: J56 | F17: S56 | G17: 44.01 | H17: NON | I17: FC1 48 | J17: FC2 48 | K17: FJ48 | L17: FS48
A18: 52.05 | B18: NON | C18: C1 56 | D18: C2 56 | E18: J56 | F18: S56 | G18: 48.01 | H18: NON | I18: FC1 53 | J18: FC2 53 | K18: FJ53 | L18: FS53
A19: 56.01 | B19: NON | C19: C1 62 | D19: C2 62 | E19: J62 | F19: S62 | G19: 53.01 | H19: NON | I19: FC1 58 | J19: FC2 58 | K19: FJ58 | L19: FS58
A20: 62.01 | B20: NON | C20: C1 69 | D20: C2 69 | E20: J69 | F20: S69 | G20: 58.01 | H20: NON | I20: FC1 63 | J20: FC2 63 | K20: FJ63 | L20: FS63
A21: 69.01 | B21: NON | C21: C1 77 | D21: C2 77 | E21: J77 | F21: S77 | G21: 63.01 | H21: NON | I21: FC1 69 | J21: FC2 69 | K21: FJ69 | L21: FS69
A22: 77.01 | B22: NON | C22: C1 85 | D22: C2 85 | E22: J85 | F22: S85 | G22: 69.01 | H22: NON | I22: FC1 +69 | J22: FC2 +69 | K22: FJ75 | L22: FS75
A23: 85.01 | B23: NON | C23: C1 94 | D23: C2 94 | E23: J94 | F23: S94 | G23: 75.01 | H23: NON | I23: FC1 +69 | J23: FC2 +69 | K23: FJ+75 | L23: FS+75
A24: 94.01 | B24: NON | C24: C1 +94 | D24: C2 +94 | E24: J105 | F24: S105 | G24: 110 | H24: NON | I24: FC1 +69 | J24: FC2 +69 | K24: FJ+75 | L24: FS+75
A25: 105.01 | B25: NON | C25: C1 +94 | D25: C2 +94 | E25: J+105 | F25: S+105 | G25: 140 | H25: NON | I25: FC1 +69 | J25: FC2 +69 | K25: FJ+75 | L25: FS+75
A26: 110 | B26: NON | C26: C1 +94 | D26: C2 +94 | E26: J+105 | F26: S+105
A27: 120 | B27: NON | C27: C1 +94 | D27: C2 +94 | E27: J+105 | F27: S+105
A28: 130 | B28: NON | C28: C1 +94 | D28: C2 +94 | E28: J+105 | F28: S+105
A29: 140 | B29: NON | C29: C1 +94 | D29: C2 +94 | E29: J+105 | F29: S+105
